Cogmind - Beta 16.1 @@@ ROGUE MODE // 2026.02.15 @ 21:29:17 Player: AlmondRoll Result: Destroyed by G-67 Veteran with Field Laser Performance ------------- Evolutions (6) 3000 Regions Visited (25) 5000 Robots Destroyed (36) 180 Value Destroyed (5879) 5879 Prototype IDs (64) 1280 Alien Tech Used (0) 0 Bonus (20582) 20582 TOTAL SCORE: 35921 Bonus ------- High Alert Combat Kills 16 Follower Combat Kills 12666 Entered Garrisons 1600 Used RIF Installer 5000 Network Hubs Disabled 200 Built Enhanced Grunts 300 A7 Reached Mainframe 300 Met R17 at Cetus 500 Cogmind --------- Core Integrity 0/1150 Matter 300/300 Energy 97/100 System Corruption 22% Temperature Cool (9) Movement Core (50) Location -4/Garrison Parts ------- > --- POWER (2) -------- (None) > --- PROPULSION (2) --- (None) > --- UTILITY (9) ------ Experimental Hacking Suite Relay Coupler [Swarmer] (42) > --- WEAPON (6) ------- (None) > --- INVENTORY (5) ---- Advanced Energy Well (500) Advanced Terrain Scanner Particle Accelerator Long-range Tractor Beam Recalibrator Peak State ------------ > --- POWER ------------ Light Quantum Reactor Meta Core > --- PROPULSION ------- Armored Huge Wheel > --- UTILITY ---------- Huge Storage Unit Advanced Signal Interpreter Active Sensor Suite Relay Coupler [NC] Relay Coupler [Swarmer] Relay Coupler [Grunt] Relay Coupler [Sentry] Relay Coupler [Hunter] > --- WEAPON ----------- Nova Cannon 1B-0RG's Assimilator > --- INVENTORY -------- Quantum Reactor Armored Huge Wheel Advanced Cooling System Advanced Energy Well High-capacity Matter Pod High-capacity Matter Pod Matter Compressor Structural Scanner Advanced Particle Charger Particle Accelerator Improved Medium Armor Plating Centrium Medium Armor Plating Graphene Brace Remote Force Field Relay Coupler [NC] Relay Coupler [NC] Relay Coupler [Swarmer] Relay Coupler [Sentry] Relay Coupler [Sentry] Long-range Tractor Beam Recalibrator Long-range Proton Cannon Improved Remote Datajack Advanced Remote Datajack [Rating: 164] Favorites ----------- Power Meta Core Engine Reinforced Deuterium Engine Power Core Meta Core Reactor Quantum Reactor Propulsion Armored Huge Wheel Treads Light Treads Leg Aluminum Leg Wheel Armored Huge Wheel Utility Cargo Storage Unit Device Gravity Neutralizer Storage Cargo Storage Unit Processor Advanced Signal Interpreter Hackware Relay Coupler [Sentry] Protection Centrium Medium Armor Plating Weapon 1B-0RG's Assimilator Energy Gun Small Laser Energy Cannon Light EM Pulse Cannon Ballistic Gun Assault Rifle Ballistic Cannon Hardcell Cannon Launcher Point Singularity Launcher Special Weapon Remote Datajack Impact Weapon Hammer Slashing Weapon Scythe Special Melee Weapon 1B-0RG's Assimilator Build | -11 -10 -10 -8 -8 -8 -8 -7 -7 -7 -7 -6 -6 -6 -6 -6 -5 -5 -5 -5 -5 -5 -4 -4 -4 -4 ------- Run | Yrd Mat Sub Mat Gar Mat Gar Fac Gar Fac Gar Fac Ext Cet Arc Hub Fac Was Fac Gar Fac Gar Fac Gar Fac Gar Slots Evolved 12 | . . . 4 . . . 2 . . . 2 . . . . 2 . . . . . 2 . . . Power 1 | . . . . . . . . . . . . . . . . 1 . . . . . . . . . Propulsion . | . . . . . . . . . . . . . . . . . . . . . . . . . . Utility 7 | . . . . . . . 2 . . . 2 . . . . 1 . . . . . 2 . . . Weapon 4 | . . . 4 . . . . . . . . . . . . . . . . . . . . . . Parts Attached 135 | 4 5 7 1 9 11 . 4 11 5 5 5 5 1 1 5 7 3 4 7 2 3 14 8 8 . Power 9 | . 1 1 . 1 1 . . . . 1 1 . . . . 3 . . . . . . . . . Engine 4 | . 1 1 . 1 1 . . . . . . . . . . . . . . . . . . . . Core 2 | . . . . . . . . . . . 1 . . . . 1 . . . . . . . . . Reactor 3 | . . . . . . . . . . 1 . . . . . 2 . . . . . . . . . Propulsion 21 | 2 . 2 . 4 4 . 1 3 . . 1 . . . . . . . . 1 . . 1 2 . Treads 9 | 2 . 2 . 3 1 . . . . . . . . . . . . . . . . . . 1 . Leg . | . . . . . . . . . . . . . . . . . . . . . . . . . . Wheel 12 | . . . . 1 3 . 1 3 . . 1 . . . . . . . . 1 . . 1 1 . Hover . | . . . . . . . . . . . . . . . . . . . . . . . . . . Flight . | . . . . . . . . . . . . . . . . . . . . . . . . . . Utility 75 | 1 3 2 . 3 3 . 3 7 3 1 3 4 1 . 4 3 1 4 3 1 2 11 6 6 . Device 32 | 1 . 2 . 3 . . 2 4 2 . . . . . 2 . 1 3 . . 1 4 3 4 . Storage 7 | . 2 . . . 1 . . 1 . . . . . . . . . 1 . . . 1 . 1 . Processor 6 | . . . . . . . . . . . . 2 . . . 1 . . . 1 . 2 . . . Hackware 24 | . . . . . 2 . 1 1 1 1 3 2 . . 1 2 . . 3 . 1 3 2 1 . Protection 6 | . 1 . . . . . . 1 . . . . 1 . 1 . . . . . . 1 1 . . Artifact . | . . . . . . . . . . . . . . . . . . . . . . . . . . Weapon 30 | 1 1 2 1 1 3 . . 1 2 3 . 1 . 1 1 1 2 . 4 . 1 3 1 . . Energy Gun 2 | . . . . . . . . . . . . . . . 1 . . . 1 . . . . . . Energy Cannon 6 | . . 2 . . . . . . . 1 . . . . . . 1 . 2 . . . . . . Ballistic Gun 3 | 1 1 . . . . . . . . . . . . 1 . . . . . . . . . . . Ballistic Cannon 1 | . . . . . . . . . . . . . . . . . . . . . . 1 . . . Launcher 4 | . . . . . 1 . . 1 . . . . . . . . 1 . . . . 1 . . . Special Weapon 10 | . . . . 1 1 . . . 2 2 . . . . . . . . 1 . 1 1 1 . . Impact Weapon 1 | . . . . . . . . . . . . 1 . . . . . . . . . . . . . Slashing Weapon 2 | . . . . . 1 . . . . . . . . . . 1 . . . . . . . . . Piercing Weapon . | . . . . . . . . . . . . . . . . . . . . . . . . . . Special Melee Weapon 1 | . . . 1 . . . . . . . . . . . . . . . . . . . . . . Unidentified Prototypes 14 | . . . 1 . 2 . . 1 . . . . . . 1 . 2 1 . . . 3 1 2 . Corrupted Parts 2 | . . 1 . . . . . . . . . . . . . . . . . . . . 1 . . System Corruption 13 | . . 10 . . . . . . . . . . . . . . . . . . . . 3 . . Parts Lost 26 | . . 2 . . 1 . 1 1 . . . . . . 1 . . . 1 1 3 . . 8 7 Power 3 | . . . . . . . . . . . . . . . . . . . . . 1 . . 1 1 Propulsion 7 | . . 1 . . . . 1 1 . . . . . . 1 . . . . 1 . . . 1 1 Utility 12 | . . 1 . . . . . . . . . . . . . . . . . . 2 . . 4 5 Weapon 4 | . . . . . 1 . . . . . . . . . . . . . 1 . . . . 2 . Highest Loss Streak 7 | . . 1 . . 1 . 1 1 . . . . . . 1 . . . 1 1 2 . . 7 5 To Critical Strikes . | . . . . . . . . . . . . . . . . . . . . . . . . . . Average Backups 24 | 6 11 12 13 14 20 29 29 29 27 28 27 24 28 29 28 27 27 28 28 28 28 25 23 23 5 Power . | 1 . . . . . . . . . . . 1 2 3 3 2 2 2 2 2 1 1 1 . . Propulsion 1 | 4 4 4 4 4 1 3 2 1 1 1 1 1 1 1 1 1 1 1 1 . . 1 1 . . Utility 17 | . 3 3 3 5 15 21 21 22 20 21 20 18 18 19 19 20 19 20 19 22 22 19 18 18 5 Weapon 2 | 1 2 2 3 1 . 1 1 2 2 1 1 1 3 4 3 1 2 2 3 2 2 2 1 1 . Tool/Special . | . . . . . . . . . . . . . . . . . . . . . . . . . . Unused Backups 83 | . 16 3 . 8 3 2 3 12 . 8 . . 1 . 2 1 1 2 5 . 1 3 . 10 2 Power 2 | . 2 . . . . . . . . . . . . . . . . . . . . . . . . Propulsion 16 | . 8 . . 5 . . 2 1 . . . . . . . . . . . . . . . . . Utility 55 | . 4 2 . 1 1 2 1 11 . 8 . . . . 2 1 . 2 4 . 1 3 . 10 2 Weapon 9 | . 2 1 . 2 2 . . . . . . . 1 . . . . . 1 . . . . . . Tool/Special 1 | . . . . . . . . . . . . . . . . . 1 . . . . . . . . Average Slot Usage (%) 65 | . 100 99 53 63 57 54 60 56 53 52 55 56 61 61 59 64 67 68 67 65 65 72 74 73 40 Engine 4 | . 14 14 9 9 9 9 7 7 7 5 . . . . . . . . . . . . . . . Core 2 | . . . . . . . . . . . 4 5 5 5 5 5 5 5 5 5 5 5 5 5 4 Reactor 2 | . . . . . . . . . . 1 . . . . . 4 5 5 5 5 4 5 5 4 . Treads 4 | . 28 27 18 16 4 . . . . . . . . . . . . . . . . . . . 4 Wheel 6 | . . . . 1 13 18 15 10 7 7 10 11 11 11 8 5 5 5 5 5 5 5 5 4 . Device 5 | . 8 4 9 9 . . 6 6 7 7 4 1 . . 2 7 5 3 2 3 3 11 9 9 2 Storage 6 | . 14 14 9 9 9 9 7 7 7 7 5 5 5 5 5 5 5 5 5 5 5 5 5 4 . Processor 2 | . . . . . . . . . . . . . 5 5 2 1 5 5 5 5 5 5 5 5 4 Hackware 12 | . . . . . 3 . 7 5 7 7 17 19 11 11 13 17 21 21 21 22 18 24 25 24 20 Protection 1 | . 5 9 . . . . . . . . . . 3 5 2 . . 1 2 1 4 1 4 5 3 Energy Cannon 2 | . . 26 . 8 . . . . . 5 . . 4 . . . . . 2 3 1 1 4 . . Special Weapon 2 | . . . . . 4 2 1 . 3 1 5 5 5 10 5 5 5 5 4 1 3 3 . 4 . Slashing Weapon 1 | . . . . . 4 6 5 6 3 . . . . . . 1 1 5 1 . . . . . . Special Melee Weapon 5 | . . . 8 9 9 9 7 7 7 7 5 5 5 5 5 5 5 5 5 5 5 5 5 4 . Peak Build Rating 164 | 7 8 20 75 81 86 85 89 101 99 106 114 120 127 130 128 144 150 146 155 149 149 158 164 160 63 Average Rating 108 | 6 7 13 74 77 82 84 87 96 94 102 113 116 125 125 121 133 144 142 147 142 145 149 156 152 52 On Entrance 99 | 6 7 8 20 75 81 84 84 88 100 95 106 114 120 124 124 127 135 138 143 149 141 147 156 156 63 Avg Prop Armor Cover (%) 11 | . . . . 9 11 . . . . . . . . . . . . . . . . . . 16 16 Naked Turns . | . . . . . . . . . . . . . . . . . . . . . . . . . . Heaviest Build 244 | 12 31 36 81 92 212 213 213 220 214 218 215 211 218 217 214 233 234 233 244 237 237 234 186 188 13 Greatest Support 56 | 40 40 40 40 40 32 32 38 40 40 28 56 56 56 44 44 40 28 28 40 28 40 40 40 40 27 Greatest Overweight (x) 15 | . . . 2 5 12 6 7 7 7 7 7 4 4 4 7 15 8 8 8 8 8 8 6 6 . Average Overweight (x) 4 | . . . 2 2 6 6 5 6 6 7 3 3 3 4 4 5 8 8 6 8 6 4 4 4 . Largest Inventory Capacity 30 | 8 15 15 15 15 30 30 30 30 30 30 30 30 30 30 30 30 30 30 30 30 30 30 25 25 5 Average Capacity 25 | 8 11 15 15 15 24 30 30 30 30 30 30 30 30 30 30 30 30 30 30 30 30 27 25 24 5 Most Carried 30 | 8 15 15 15 15 30 30 30 30 30 30 29 28 30 30 30 30 30 30 30 30 30 30 25 25 5 Average Carried 25 | 6 11 14 13 14 20 29 29 29 28 29 27 25 29 30 29 28 28 29 29 29 29 26 24 24 5 Final Capacity 30 | 8 15 15 15 15 30 30 30 30 30 30 30 30 30 30 30 30 30 30 30 30 30 25 25 5 5 Final Carried 30 | 8 15 15 15 15 30 30 30 30 28 30 28 26 30 30 30 27 30 30 30 30 30 24 25 5 5 Class Distribution -------------------- 71% | Botlord-Mutant 18% | Mutant 9% | Bothacker-Mutant Dominant Class ---------------- Mutant | -10/Materials Mutant | -10/Subcaves Mutant | -8/Materials Mutant | -8/Garrison Bothacker-Mutant | -8/Materials Bothacker-Mutant | -8/Garrison Botlord-Mutant | -7/Factory Botlord-Mutant | -7/Garrison Botlord-Mutant | -7/Factory Botlord-Mutant | -7/Garrison Botlord-Mutant | -6/Factory Botlord-Mutant | -6/Extension Botlord-Mutant | -6/Cetus Botlord-Mutant | -6/Archives Botlord-Mutant | -6/Hub_04(d) Botlord-Mutant | -5/Factory Botlord-Mutant | -5/Waste Botlord-Mutant | -5/Factory Botlord-Mutant | -5/Garrison Botlord-Mutant | -5/Factory Botlord-Mutant | -5/Garrison Botlord-Mutant | -4/Factory Botlord-Mutant | -4/Garrison Botlord-Mutant | -4/Factory Mutant | -4/Garrison Resources | -11 -10 -10 -8 -8 -8 -8 -7 -7 -7 -7 -6 -6 -6 -6 -6 -5 -5 -5 -5 -5 -5 -4 -4 -4 -4 ----------- Run | Yrd Mat Sub Mat Gar Mat Gar Fac Gar Fac Gar Fac Ext Cet Arc Hub Fac Was Fac Gar Fac Gar Fac Gar Fac Gar Matter Collected 19272 | 261 532 212 21 1172 545 1322 401 1222 125 1060 155 1346 347 50 404 128 280 2063 1419 421 1140 1695 248 2703 . Remotely 4528 | . . . . 262 . . . . . 88 . . . . 160 98 . 985 481 136 404 698 . 1216 . Salvage Created 3052 | 120 285 269 . . 68 . 213 960 . . . . 80 . 10 . . 196 82 147 354 23 245 . . Parts 122 | 6 24 10 . . 3 . 16 26 . . . . 3 . . . . 9 3 5 7 2 8 . . Haulers Intercepted 2 | . 2 . . . . . . . . . . . . . . . . . . . . . . . . Recyclers Shooed 5 | . 1 . . . . . . . . . . 1 . . . . . 2 . 1 . . . . . Parts Field Recycled 54 | . . . . 54 . . . . . . . . . . . . . . . . . . . . . Retrieved Matter 174 | . . . . 174 . . . . . . . . . . . . . . . . . . . . . Parts Self-Destructed 6 | . . 6 . . . . . . . . . . . . . . . . . . . . . . . Prevented 4 | . . 4 . . . . . . . . . . . . . . . . . . . . . . . Parts Restored . | . . . . . . . . . . . . . . . . . . . . . . . . . . Kills | -11 -10 -10 -8 -8 -8 -8 -7 -7 -7 -7 -6 -6 -6 -6 -6 -5 -5 -5 -5 -5 -5 -4 -4 -4 -4 ------- Run | Yrd Mat Sub Mat Gar Mat Gar Fac Gar Fac Gar Fac Ext Cet Arc Hub Fac Was Fac Gar Fac Gar Fac Gar Fac Gar Combat Hostiles Destroyed 14 | . 8 4 . . . . . . . . . . 1 . . . . . 1 . . . . . . Guns 8 | . 8 . . . . . . . . . . . . . . . . . . . . . . . . Cannons 4 | . . 3 . . . . . . . . . . . . . . . . 1 . . . . . . Classes Destroyed 14 | 2 5 3 . . . . . . . . . . 1 . 1 . . . . . 1 1 . . . Worker 1 | . . . . . . . . . . . . . . . . . . . . . . 1 . . . Builder 7 | . 1 . . . . . 3 . . . . . . . . . . 2 . 1 . . . . . Tunneler 1 | 1 . . . . . . . . . . . . . . . . . . . . . . . . . Hauler 2 | . 2 . . . . . . . . . . . . . . . . . . . . . . . . Recycler 6 | 1 . . . . 1 . 2 . . . . . . . . . . 1 . 1 . . . . . Operator 1 | . . . . . . . . . . . . . . . 1 . . . . . . . . . . Turret 2 | . . 2 . . . . . . . . . . . . . . . . . . . . . . . Watcher 1 | . 1 . . . . . . . . . . . . . . . . . . . . . . . . Swarmer 6 | . 6 . . . . . . . . . . . . . . . . . . . . . . . . Grunt 5 | . 2 2 . . . . . . . . . . . . . . . . 1 . . . . . . Hunter 1 | . . . . . . . . . . . . . . . . . . . . . 1 . . . . Cetus Guard 1 | . . . . . . . . . . . . . 1 . . . . . . . . . . . . Artisan 1 | . . 1 . . . . . . . . . . . . . . . . . . . . . . . Subdweller 2 | . . 2 . . . . . . . . . . . . . . . . . . . . . . . Best Kill Streak 4 | 2 4 2 . . 1 . 1 . . . . . 1 . 1 . . 1 1 1 . 1 . . . Combat Bots Only 3 | . 3 2 . . . . . . . . . . 1 . . . . . 1 . . . . . . Max Kills in Single Turn 1 | 1 1 1 . . 1 . 1 . . . . . 1 . 1 . . 1 1 1 1 1 . . . Gunslinging . | . . . . . . . . . . . . . . . . . . . . . . . . . . Exploded . | . . . . . . . . . . . . . . . . . . . . . . . . . . Melee . | . . . . . . . . . . . . . . . . . . . . . . . . . . Uniques/NPCs Destroyed . | . . . . . . . . . . . . . . . . . . . . . . . . . . Combat | -11 -10 -10 -8 -8 -8 -8 -7 -7 -7 -7 -6 -6 -6 -6 -6 -5 -5 -5 -5 -5 -5 -4 -4 -4 -4 -------- Run | Yrd Mat Sub Mat Gar Mat Gar Fac Gar Fac Gar Fac Ext Cet Arc Hub Fac Was Fac Gar Fac Gar Fac Gar Fac Gar Hostile Shots Fired 619 | . 27 66 8 27 2 19 3 33 2 28 9 22 14 . 10 8 . 5 30 . 23 13 4 148 118 Missed 204 | . 6 28 4 7 . 5 1 12 . 12 4 8 9 . 3 4 . 1 8 . 5 6 1 55 25 Hits 415 | . 21 38 4 20 2 14 2 21 2 16 5 14 5 . 7 4 . 4 22 . 18 7 3 93 93 Melee 1 | . . . . . . . . 1 . . . . . . . . . . . . . . . . . Projectile 414 | . 21 38 4 20 2 14 2 20 2 16 5 14 5 . 7 4 . 4 22 . 18 7 3 93 93 AOE 8 | . . . . . 1 . . 1 . 1 . . . . 2 . . . 2 . . . . 1 . Critical Strikes 30 | . . . 1 1 . 1 . 1 1 . . 1 1 . 2 . . . 1 . 1 . . 8 11 Actively Blocked 1 | . . . . . . . . 1 . . . . . . . . . . . . . . . . . Part Disruptions 3 | . . . . . . . . . . . . . . . 1 1 . . . . . . . 1 . Damage Taken 8241 | . 180 396 55 250 93 259 71 445 30 176 31 248 156 . 466 138 53 122 660 96 524 119 90 1760 1823 Core 2047 | . 22 78 . 66 36 50 32 69 . 47 . 63 10 . 107 46 . 28 131 21 79 18 24 259 861 Absorbed by Shields 422 | . . . . . . . . . . . . . 43 . . . . . . . 20 43 65 153 98 Ignored by Resistances 4 | . . . . . . . . . . . . . . . . . . . . . . . . 4 . Regen/Repaired (Parts) 1503 | . . . . 76 49 224 19 113 . 57 11 134 68 . 223 84 53 37 117 44 23 29 . 142 . Core Remaining (%) 76 | 100 . 60 . . . 72 . . . 78 . . . . 78 . . . . . 69 . . . . Volleys Fired 478 | 7 33 33 . 14 10 3 8 1 17 25 21 45 11 2 16 6 26 10 35 9 46 40 26 34 . Largest 2 | 2 2 2 . 1 1 1 1 1 1 1 1 1 1 1 1 1 1 1 1 1 1 1 1 1 . Hottest 240 | 60 60 112 . 56 5 5 5 5 5 69 5 69 69 5 80 240 80 5 113 113 113 113 113 113 . Shots Fired 543 | 14 66 56 . 14 10 3 8 1 17 25 21 45 11 2 16 6 26 10 37 9 44 40 27 35 . Gun 129 | 14 66 24 . . . . . . . . . . . . 4 3 18 . . . . . . . . Cannon 174 | . . 32 . 14 . . . . . 25 . 1 8 . . . . . 13 8 32 8 24 9 . Launcher 1 | . . . . . . . . . . . . . . . . . . . 1 . . . . . . Special 239 | . . . . . 10 3 8 1 17 . 21 44 3 2 12 3 8 10 23 1 12 32 3 26 . Kinetic 68 | 7 37 24 . . . . . . . . . . . . . . . . . . . . . . . Thermal 126 | 7 29 . . . . . . . . . . . . . 4 3 18 . 7 2 24 8 15 9 . Explosive 1 | . . . . . . . . . . . . . . . . . . . 1 . . . . . . Electromagnetic 109 | . . 32 . 14 . . . . . 25 . 1 8 . . . . . 6 6 8 . 9 . . Robot Hit Streak 17 | 3 9 15 . . 17 5 4 5 12 . 7 8 11 1 5 2 7 10 11 9 14 9 8 11 . Robot Miss Streak 3 | 3 3 1 . . 2 . 2 . 3 . 2 3 2 2 1 1 3 1 3 1 1 2 1 2 . Penetration Max . | . . . . . . . . . . . . . . . . . . . . . . . . . . Secondary Targets 1 | . . 1 . . . . . . . . . . . . . . . . . . . . . . . Max Gunslinging Chain 1 | . . 1 . . . . . . . . . . . . . . . . . . . . . . . Shots Hit Robots 402 | 6 38 37 . . 12 3 11 50 12 . 15 34 8 1 12 2 20 26 22 6 29 25 11 22 . Core Hits 88 | 3 19 13 . . . . 3 18 . . . . 3 . . . 1 5 1 4 7 1 4 . 6 Critical Kills 2 | . . 1 . . . . . . . . . . . . . . . . . . 1 . . . . Critical Parts Destroyed . | . . . . . . . . . . . . . . . . . . . . . . . . . . Critical Strikes 12 | . . 1 . . 1 . . 5 . . . . . . . . . 3 1 . 1 . . . . Meltdown 1 | . . . . . . . . . . . . . . . . . . . . . 1 . . . . Destroy 1 | . . 1 . . . . . . . . . . . . . . . . . . . . . . . Sever 10 | . . . . . 1 . . 5 . . . . . . . . . 3 1 . . . . . . Melee Attacks 213 | . . . . . 8 18 14 106 1 . . 4 8 . 4 8 . 22 20 . . . . . . Impact 23 | . . . . . . . . . . . . 4 8 . 4 7 . . . . . . . . . Slashing 190 | . . . . . 8 18 14 106 1 . . . . . . 1 . 22 20 . . . . . . Piercing . | . . . . . . . . . . . . . . . . . . . . . . . . . . Sneak Attacks 23 | . . . . . 4 . 6 . . . . . . . 3 . . 9 1 . . . . . . Combat Hostiles . | . . . . . . . . . . . . . . . . . . . . . . . . . . Follow-up Attacks . | . . . . . . . . . . . . . . . . . . . . . . . . . . Damage Inflicted 8221 | 71 485 552 . . 311 . 375 2854 . . . 30 126 . 101 . 580 807 256 377 795 38 339 . 124 Guns 1337 | 71 467 219 . . . . . . . . . . . . . . 580 . . . . . . . . Cannons 2031 | . . 333 . . . . . . . . . 30 126 . . . . . 188 182 795 38 339 . . Explosions 195 | . . . . . . . . . . . . . . . . . . . . 195 . . . . . Melee 4516 | . . . . . 311 . 375 2854 . . . . . . 101 . . 807 68 . . . . . . Ramming 142 | . 18 . . . . . . . . . . . . . . . . . . . . . . . 124 Kinetic 598 | 48 331 219 . . . . . . . . . . . . . . . . . . . . . . . Thermal 1890 | 23 136 . . . . . . . . . . . . . . . 580 . 42 195 795 38 81 . . Explosive . | . . . . . . . . . . . . . . . . . . . . . . . . . . Electromagnetic 1075 | . . 333 . . . . . . . . . 30 126 . . . . . 146 182 . . 258 . . Impact 101 | . . . . . . . . . . . . . . . 101 . . . . . . . . . . Slashing 4415 | . . . . . 311 . 375 2854 . . . . . . . . . 807 68 . . . . . . Piercing . | . . . . . . . . . . . . . . . . . . . . . . . . . . Highest Corruption 22 | . 2 12 . . . . 1 2 2 . . . . . 5 1 1 11 12 12 12 . 3 14 22 Average Corruption 5 | . 2 2 . . . . 1 1 1 . . . . . 4 1 1 10 11 12 12 . 3 3 15 Corruption Purged 2 | . . . . . . . . . 2 . . . . . . . . . . . . . . . . Corruption Blocked . | . . . . . . . . . . . . . . . . . . . . . . . . . . Effects 251 | . 7 17 . . . . 2 23 1 . . . . . 6 3 2 46 59 14 32 . 1 25 13 Message Errors 62 | . . 8 . . . . . 5 . . . . . . 1 . . 14 14 6 8 . . 5 1 Matter Fused 75 | . 3 6 . . . . 1 9 . . . . . . 3 1 . 10 19 3 10 . . 7 3 Heat Flow Errors 25 | . 1 . . . . . . 1 . . . . . . 1 1 . 7 8 2 1 . . 1 2 Energy Discharges 24 | . 1 1 . . . . 1 1 1 . . . . . . . . 6 4 . 6 . . 2 1 Parts Rejected 2 | . . . . . . . . . . . . . . . . 1 . 1 . . . . . . . Parts Fused 4 | . . . . . . . . 1 . . . . . . . . . . 1 . 1 . . 1 . Data Loss (minor) 30 | . 1 1 . . . . . 4 . . . . . . 1 . 2 3 6 1 2 . . 6 3 Data Loss (major) 13 | . 1 1 . . . . . 1 . . . . . . . . . 4 4 1 . . . 1 . Misfires 4 | . . . . . . . . . . . . . . . . . . . 2 . . . 1 1 . Alerts 6 | . . . . . . . . 1 . . . . . . . . . . 1 1 2 . . 1 . Misdirections 4 | . . . . . . . . . . . . . . . . . . 1 . . . . . . 3 Weapon Failures 2 | . . . . . . . . . . . . . . . . . . . . . 2 . . . . Overload Shots 2 | . . . . . . . . . . . . . . . . 2 . . . . . . . . . Overflow Damage 398 | . . . . . 54 . 44 131 . . . . . . 2 . . 141 . 7 19 . . . . Projectiles 24 | . . . . . . . . . . . . . . . . . . . . 5 19 . . . . Explosions 2 | . . . . . . . . . . . . . . . . . . . . 2 . . . . . Melee 372 | . . . . . 54 . 44 131 . . . . . . 2 . . 141 . . . . . . . Knockbacks 2 | . . . . . . . . . . . . . . . 1 . . . . . . . . . 1 Impact 2 | . . . . . . . . . . . . . . . 1 . . . . . . . . . 1 Kinetic . | . . . . . . . . . . . . . . . . . . . . . . . . . . Secondary . | . . . . . . . . . . . . . . . . . . . . . . . . . . Self-Inflicted Damage 94 | . . . . . . . . . . . . . . . . . . . . 53 . . . . 41 Shots 2 | . . . . . . . . . . . . . . . . . . . . 2 . . . . . Rammed 58 | . 3 . . . . . . . . . . . . . . . . . . . . . . . 55 Targets Rammed 58 | . 3 . . . . . . . . . . . . . . . . . . . . . . . 55 Kicked . | . . . . . . . . . . . . . . . . . . . . . . . . . . Crushed . | . . . . . . . . . . . . . . . . . . . . . . . . . . Highest Temperature 466 | . 257 12 . 12 466 . . 158 . 60 . 4 16 . 112 415 294 262 272 298 190 79 103 245 105 Average Temperature 70 | . 41 9 . 4 235 . . 86 . 17 . 3 7 . 56 147 120 117 78 101 52 39 34 65 45 Received Heat Transfer 1467 | . 36 132 36 45 9 72 18 57 . 42 6 102 . . 12 . 12 36 138 12 60 12 6 100 524 Effects 3 | . . . . . . . . . . . . . . . . . 3 . . . . . . . . Energy Bleed 1 | . . . . . . . . . . . . . . . . . 1 . . . . . . . . Interference 2 | . . . . . . . . . . . . . . . . . 2 . . . . . . . . Siege Activations . | . . . . . . . . . . . . . . . . . . . . . . . . . . Martial Activations . | . . . . . . . . . . . . . . . . . . . . . . . . . . Shielding Activations . | . . . . . . . . . . . . . . . . . . . . . . . . . . Robots Disrupted 1 | . . . . . . . . . . . . . 1 . . . . . . . . . . . . Combat Hostiles 1 | . . . . . . . . . . . . . 1 . . . . . . . . . . . . Robots Corrupted 5 | . . 1 . . . . . . . . . . 1 . 1 . . . . . . . 2 . . Combat Hostiles 2 | . . 1 . . . . . . . . . . 1 . . . . . . . . . . . . Parts Fried 13 | . . 6 . . . . . . . . . . . . 2 . . . . 4 . . 1 . . Impact Corruptions 1 | . . . . . . . . . . . . . . . 1 . . . . . . . . . . Robots Melted 1 | . . . . . . . . . . . . . . . . . . . . . 1 . . . . Combat Hostiles . | . . . . . . . . . . . . . . . . . . . . . . . . . . Parts Melted 1 | . . . . . . . . . . . . . . . . . . . . . 1 . . . . Heat Transferred 2077 | 50 300 . . . . . . . . . . . . . . . 629 . 37 400 550 37 74 . . Parts Sabotaged . | . . . . . . . . . . . . . . . . . . . . . . . . . . Parts Stolen . | . . . . . . . . . . . . . . . . . . . . . . . . . . Parts Stripped . | . . . . . . . . . . . . . . . . . . . . . . . . . . Power Chain Reactions 2 | . . . . . . . . . . . . . . . . . . . . 2 . . . . . Alert | -11 -10 -10 -8 -8 -8 -8 -7 -7 -7 -7 -6 -6 -6 -6 -6 -5 -5 -5 -5 -5 -5 -4 -4 -4 -4 ------- Run | Yrd Mat Sub Mat Gar Mat Gar Fac Gar Fac Gar Fac Ext Cet Arc Hub Fac Was Fac Gar Fac Gar Fac Gar Fac Gar Maximum Alert Level 5 | . . . . 4 3 3 2 5 3 5 3 1 1 1 3 3 1 3 4 2 3 2 4 3 . Low Security (%) 26 | 100 100 . 100 27 6 . 37 8 2 6 . 72 84 89 24 . 45 73 . . . 31 . 5 100 Level 1 23 | . . . . 24 50 . 53 6 45 9 54 27 15 10 12 28 54 8 . . 15 50 14 54 . Level 2 16 | . . . . 18 19 32 9 20 . 10 20 . . . 16 9 . 2 41 100 27 18 2 10 . Level 3 22 | . . . . 24 23 67 . 28 50 37 25 . . . 47 61 . 14 31 . 57 . 2 30 . Level 4 10 | . . . . 5 . . . 28 . 26 . . . . . . . . 27 . . . 80 . . Level 5 1 | . . . . . . . . 8 . 10 . . . . . . . . . . . . . . . High Security . | . . . . . . . . . . . . . . . . . . . . . . . . . . Max Security . | . . . . . . . . . . . . . . . . . . . . . . . . . . Peak Influence 1643 | 5 140 . 19 1126 879 877 438 1643 862 1629 862 287 224 228 864 1086 322 797 1249 675 1003 526 1586 832 99 Initial 862 | . . . 19 2 548 546 438 94 862 171 854 112 130 48 . 415 322 61 541 655 365 526 158 832 54 Average 526 | 1 36 . 3 453 439 761 263 901 550 973 468 137 163 112 492 727 205 186 828 605 701 267 1137 464 66 Influence Increases 15937 | 10 263 90 11 1164 983 471 137 1579 321 1538 247 797 357 190 1390 899 30 1108 978 91 788 509 1468 473 45 Destroy 0b10 Robot/C 6340 | . 160 80 . 440 520 220 40 560 140 700 120 320 160 80 480 260 . 440 280 20 300 180 560 280 . Destroy 0b10 Robot/NC 330 | 10 20 . 5 10 25 . 20 50 5 . 5 10 . . 45 10 . 30 5 10 15 25 15 15 . Destroy Leader 864 | . 26 10 2 10 134 20 10 40 42 80 40 40 . . 144 50 . 74 30 . 20 30 50 12 . Allied During Kill 4499 | . . . . 125 224 47 6 160 119 385 82 322 160 80 667 260 . 478 212 28 324 174 538 108 . Successful Hack 306 | . 12 . 4 . 19 14 12 14 14 28 . 79 3 . . 3 . 40 . 12 . 25 14 13 . Disable Machine 480 | . . . . . 60 . 15 60 . 15 . 15 15 30 15 90 . 15 . 15 . 45 75 15 . Anti-Garrison Action 2200 | . . . . 500 . 100 . 600 . 250 . . . . . 150 . . 350 . 100 . 150 . . Destroy Structure 663 | . . . . 49 1 25 4 65 1 80 . 11 19 . 39 76 30 16 86 6 29 30 66 30 . Partial Spotted 45 | . . . . . . . . . . . . . . . . . . . . . . . . . 45 Lose Combat Pursuer 210 | . 45 . . 30 . 45 30 30 . . . . . . . . . 15 15 . . . . . . Influence Decreases 15908 | 10 184 131 45 42 1268 475 839 71 1719 154 1645 794 470 311 542 827 862 423 502 818 307 1285 109 1981 94 Entered New Map 6664 | . . 39 19 2 578 295 399 41 781 74 775 119 104 73 . 433 598 27 232 594 157 477 69 754 24 Time Decay 5237 | 10 184 92 26 . 510 . 350 . 238 . 350 483 246 238 292 334 254 336 . 214 . 598 . 482 . Lost Part 240 | . . . . . 10 . 10 10 . . . . . . 10 . . . 10 10 30 . . 80 70 Lost Ally 2142 | . . . . 40 20 180 80 20 . 80 20 192 120 . 240 60 10 60 260 . 120 210 40 390 . Purge Threat 1625 | . . . . . 150 . . . 700 . 500 . . . . . . . . . . . . 275 . Squads Dispatched 53 | . 1 . 1 . 4 . 1 . 3 . 2 4 . . 8 4 . 5 . 1 . 8 . 11 . Investigation 7 | . 1 . . . . . . . 1 . . 1 . . . . . . . . . 3 . 1 . Extermination 16 | . . . . . . . 1 . 1 . 1 . . . 2 1 . 3 . 1 . 4 . 2 . Reinforcement 22 | . . . . . 3 . . . 1 . 1 3 . . 4 . . 2 . . . . . 8 . Assault 5 | . . . . . 1 . . . . . . . . . 1 3 . . . . . . . . . Garrison 3 | . . . 1 . . . . . . . . . . . 1 . . . . . . 1 . . . Intercept . | . . . . . . . . . . . . . . . . . . . . . . . . . . Searches Triggered . | . . . . . . . . . . . . . . . . . . . . . . . . . . Construction Impeded 2 | . . . . . . . . . . . . 1 . . . . . 1 . . . . . . . Haulers Reinforced 3 | . . . . . . . . . . . . . . . 1 . . . . . . . . 2 . Active Scanning Responses . | . . . . . . . . . . . . . . . . . . . . . . . . . . Cargo Convoy Interrupts 1 | . . . . . . . . . . . . . . . . . . . . . . . . 1 . Alert ID Control Effect 51 | . . . . . . . . . . . . . . . . . . . 13 4 6 13 . 15 . Stealth | -11 -10 -10 -8 -8 -8 -8 -7 -7 -7 -7 -6 -6 -6 -6 -6 -5 -5 -5 -5 -5 -5 -4 -4 -4 -4 --------- Run | Yrd Mat Sub Mat Gar Mat Gar Fac Gar Fac Gar Fac Ext Cet Arc Hub Fac Was Fac Gar Fac Gar Fac Gar Fac Gar Distress Signals 19 | . 1 . . 1 2 . . . 1 . 1 . 1 . 5 . . 3 1 . . . . 3 . Communications Jammed 199 | . . . . . . . . . . . . . . . . . . 20 . . . 10 . 169 . Distress Signals 198 | . . . . . . . . . . . . . . . . . . 20 . . . 10 . 168 . Times Spotted 421 | . 13 12 4 25 24 17 7 33 5 20 6 33 11 1 17 11 6 20 39 4 21 27 21 40 4 Peak Tracking Total 13 | . 3 8 2 4 5 5 3 5 1 4 2 5 5 1 4 4 2 3 5 2 6 3 4 13 4 Tactical Retreats 9 | . 2 . . 1 . 1 1 2 . . . . . . . . . 1 1 . . . . . . Traps | -11 -10 -10 -8 -8 -8 -8 -7 -7 -7 -7 -6 -6 -6 -6 -6 -5 -5 -5 -5 -5 -5 -4 -4 -4 -4 ------- Run | Yrd Mat Sub Mat Gar Mat Gar Fac Gar Fac Gar Fac Ext Cet Arc Hub Fac Was Fac Gar Fac Gar Fac Gar Fac Gar Traps Triggered 40 | . 1 1 . 4 . 5 1 5 . 3 . 1 . . . 3 . 2 5 . 3 . 5 . 1 Indirectly . | . . . . . . . . . . . . . . . . . . . . . . . . . . Trap Hack Attempts . | . . . . . . . . . . . . . . . . . . . . . . . . . . Triggered . | . . . . . . . . . . . . . . . . . . . . . . . . . . Disarmed . | . . . . . . . . . . . . . . . . . . . . . . . . . . Reprogrammed . | . . . . . . . . . . . . . . . . . . . . . . . . . . Reused . | . . . . . . . . . . . . . . . . . . . . . . . . . . Traps Extracted . | . . . . . . . . . . . . . . . . . . . . . . . . . . Installed . | . . . . . . . . . . . . . . . . . . . . . . . . . . Triggered . | . . . . . . . . . . . . . . . . . . . . . . . . . . Machines | -11 -10 -10 -8 -8 -8 -8 -7 -7 -7 -7 -6 -6 -6 -6 -6 -5 -5 -5 -5 -5 -5 -4 -4 -4 -4 ---------- Run | Yrd Mat Sub Mat Gar Mat Gar Fac Gar Fac Gar Fac Ext Cet Arc Hub Fac Was Fac Gar Fac Gar Fac Gar Fac Gar Machines Disabled 61 | . . 1 . 3 4 2 1 12 . 4 . 1 1 2 1 7 . 1 5 1 2 3 9 1 . Max in Single Turn 2 | . . 1 . 2 1 1 1 1 . 1 . 1 1 . 1 1 . . 1 1 1 . 1 . . Garrison Access 3 | . . . . . . . . . . . . . . . 2 1 . . . . . . . . . Garrison Relay 24 | . . . . 1 . 2 . 8 . 3 . . . . . . . . 5 . 2 . 3 . . Phase Generator 1 | . . . . 1 . . . . . . . . . . . . . . . . . . . . . Network Hub 1 | . . . . . . . . . . . . . . . 1 . . . . . . . . . . Machines Repaired 1 | . . . . . 1 . . . . . . . . . . . . . . . . . . . . Machines Dismantled 9 | . . . . . . . . . . 2 . 1 1 . 1 . . . 2 . 2 . . . . Machines Sabotaged . | . . . . . . . . . . . . . . . . . . . . . . . . . . Overloaded Fab Kills . | . . . . . . . . . . . . . . . . . . . . . . . . . . Hacking | -11 -10 -10 -8 -8 -8 -8 -7 -7 -7 -7 -6 -6 -6 -6 -6 -5 -5 -5 -5 -5 -5 -4 -4 -4 -4 --------- Run | Yrd Mat Sub Mat Gar Mat Gar Fac Gar Fac Gar Fac Ext Cet Arc Hub Fac Was Fac Gar Fac Gar Fac Gar Fac Gar Machines Accessed 89 | . 6 1 1 2 7 2 4 2 2 4 3 12 3 1 3 7 . 4 2 3 1 11 3 5 . Terminals 56 | . 4 . . 2 5 2 1 2 . 4 2 12 3 . 1 1 . 2 2 . 1 5 3 4 . Fabricators 7 | . . . . . . . . . 1 . 1 . . . . 3 . . . . . 2 . . . Repair Stations 3 | . . . . . . . . . . . . . . . . 1 . 1 . 1 . . . . . Recycling Units 8 | . 2 . . . . . 1 . . . . . . . . 2 . . . . . 3 . . . Scanalyzers 3 | . . . . . 1 . 1 . . . . . . . . . . . . 1 . . . . . Garrison Access 10 | . . . 1 . 1 . 1 . 1 . . . . . 2 . . 1 . 1 . 1 . 1 . Total Hacks 213 | . 22 1 1 5 16 3 6 3 5 8 8 29 7 1 5 16 . 13 2 7 4 29 9 13 . Successful 83 | . 9 1 1 . 7 1 3 1 3 3 . 15 1 1 3 6 . 4 1 4 . 13 1 5 . Failed 129 | . 13 . . 5 8 2 3 2 2 5 8 14 6 . 2 10 . 9 1 3 4 16 8 8 . Catastrophic 27 | . 1 . . . . . 1 1 . . . 2 3 . . 4 . 4 1 1 1 3 2 3 . Database Lockouts 1 | . . . . . 1 . . . . . . . . . . . . . . . . . . . . Manual 74 | . 13 . . . 7 . . . 2 2 6 11 2 . 1 6 . 4 1 2 . 10 . 7 . Terminals 139 | . 15 . . 5 13 3 1 3 . 8 5 29 7 . 1 1 . 6 2 . 4 15 9 12 . Fabricators 19 | . . . . . . . . . 3 . 3 . . . . 6 . . . . . 7 . . . Repair Stations 10 | . . . . . . . . . . . . . . . . 1 . 6 . 3 . . . . . Recycling Units 21 | . 7 . . . . . 1 . . . . . . . . 8 . . . . . 5 . . . Scanalyzers 7 | . . . . . 2 . 3 . . . . . . . . . . . . 2 . . . . . Garrison Access 15 | . . . 1 . 1 . 1 . 2 . . . . . 4 . . 1 . 2 . 2 . 1 . Terminal Hacks 35 | . 4 1 . . 3 1 1 1 . 3 . 10 1 1 . . . 2 1 . . 3 1 2 . Record 2 | . . . . . . . . . . . . . 1 1 . . . . . . . . . . . Part Schematic 2 | . 1 . . . . . . . . . . 1 . . . . . . . . . . . . . Robot Analysis 3 | . 2 . . . . . . . . . . 1 . . . . . . . . . . . . . Prototype ID Bank 3 | . . . . . . . . . . . . . . . . . . . . . . 2 . 1 . Open Door 7 | . . . . . . . . . . 1 . 6 . . . . . . . . . . . . . Open DSF 1 | . . . . . . . 1 . . . . . . . . . . . . . . . . . . Emergency Access Points 3 | . . . . . . . . 1 . 1 . . . . . . . . . . . . 1 . . Unreport Threat 1 | . . . . . 1 . . . . . . . . . . . . . . . . . . . . Locate Traps 4 | . 1 . . . 2 . . . . . . 1 . . . . . . . . . . . . . Maintenance Status 1 | . . . . . . . . . . . . . . . . . . . . . . . . 1 . Recall Reinforcements 1 | . . . . . . . . . . . . 1 . . . . . . . . . . . . . Hauler Manifests 2 | . . . . . . . . . . . . . . . . . . 1 . . . 1 . . . Zone Layout 1 | . . . . . . . . . . . . . . . . . . 1 . . . . . . . Garrison Registry 2 | . . . . . . 1 . . . . . . . . . . . . 1 . . . . . . Patrol Navigation 1 | . . . . . . . . . . 1 . . . . . . . . . . . . . . . Proto ID Catalog 1 | . . 1 . . . . . . . . . . . . . . . . . . . . . . . Fabricator Hacks 7 | . . . . . . . . . 1 . . . . . . 2 . . . . . 4 . . . Network Status 3 | . . . . . . . . . 1 . . . . . . 1 . . . . . 1 . . . Load Schematic 2 | . . . . . . . . . . . . . . . . . . . . . . 2 . . . Build 2 | . . . . . . . . . . . . . . . . 1 . . . . . 1 . . . Repair Station Hacks 1 | . . . . . . . . . . . . . . . . . . 1 . . . . . . . Scan Component 1 | . . . . . . . . . . . . . . . . . . 1 . . . . . . . Recycling Unit Hacks 5 | . 2 . . . . . . . . . . . . . . 2 . . . . . 1 . . . Retrieve Components 5 | . 2 . . . . . . . . . . . . . . 2 . . . . . 1 . . . Scanalyzer 3 | . . . . . 1 . 1 . . . . . . . . . . . . 1 . . . . . Retrieve Study 3 | . . . . . 1 . 1 . . . . . . . . . . . . 1 . . . . . Garrison Access Hacks 12 | . . . 1 . 1 . 1 . 1 . . . . . 3 . . 1 . 2 . 1 . 1 . Unlock Access 9 | . . . 1 . 1 . 1 . 1 . . . . . 1 . . 1 . 1 . 1 . 1 . Seal Access 2 | . . . . . . . . . . . . . . . 2 . . . . . . . . . . Coupler Status 1 | . . . . . . . . . . . . . . . . . . . . 1 . . . . . Unauthorized Hacks 20 | . 3 . . . 2 . . . 1 . . 5 . . . 2 . . . 1 . 4 . 2 . Terminals 13 | . . . . . 2 . . . . . . 5 . . . . . . . . . 4 . 2 . Track 2 | . . . . . . . . . . . . 1 . . . . . . . . . 1 . . . Botnet 9 | . . . . . 2 . . . . . . 4 . . . . . . . . . 1 . 2 . Disrupt 1 | . . . . . . . . . . . . . . . . . . . . . . 1 . . . Operators 1 | . . . . . . . . . . . . . . . . . . . . . . 1 . . . Fabricators 1 | . . . . . . . . . 1 . . . . . . . . . . . . . . . . Haulers 1 | . . . . . . . . . 1 . . . . . . . . . . . . . . . . Repair Stations 2 | . . . . . . . . . . . . . . . . 1 . . . 1 . . . . . Mechanics 2 | . . . . . . . . . . . . . . . . 1 . . . 1 . . . . . Recycling Units 4 | . 3 . . . . . . . . . . . . . . 1 . . . . . . . . . Reject 3 | . 2 . . . . . . . . . . . . . . 1 . . . . . . . . . Recyclers 1 | . 1 . . . . . . . . . . . . . . . . . . . . . . . . Scanalyzers . | . . . . . . . . . . . . . . . . . . . . . . . . . . Garrison Access . | . . . . . . . . . . . . . . . . . . . . . . . . . . Data Cores Recovered 2 | . . . . . . . . . . . 1 . . . . . . . . . . 1 . . . Used . | . . . . . . . . . . . . . . . . . . . . . . . . . . Hacking Detections 71 | . 6 . . 2 4 1 3 2 2 3 3 10 3 . 2 6 . 3 1 2 1 10 3 4 . Full Trace Events 6 | . 1 . . . . . . 1 . . . 1 . . . . . . . . . 2 . 1 . Feedback Events . | . . . . . . . . . . . . . . . . . . . . . . . . . . Feedback Blocked . | . . . . . . . . . . . . . . . . . . . . . . . . . . Robot Schematics Acquired . | . . . . . . . . . . . . . . . . . . . . . . . . . . Robots Built . | . . . . . . . . . . . . . . . . . . . . . . . . . . Authchips . | . . . . . . . . . . . . . . . . . . . . . . . . . . Time . | . . . . . . . . . . . . . . . . . . . . . . . . . . Total Robot Build Rating . | . . . . . . . . . . . . . . . . . . . . . . . . . . Part Schematics Acquired 2 | . 1 . . . . . . . . . . 1 . . . . . . . . . . . . . Parts Built 4 | . . . . . . . . . . . . . . . . 2 . . . . . 2 . . . Authchips . | . . . . . . . . . . . . . . . . . . . . . . . . . . Time 159 | . . . . . . . . . . . . . . . . 106 . . . . . 53 . . . Total Part Build Rating 24 | . . . . . . . . . . . . . . . . 12 . . . . . 12 . . . Part Studies Acquired 3 | . . . . . 1 . 1 . . . . . . . . . . . . 1 . . . . . Parts Repaired . | . . . . . . . . . . . . . . . . . . . . . . . . . . Time . | . . . . . . . . . . . . . . . . . . . . . . . . . . Parts Recycled . | . . . . . . . . . . . . . . . . . . . . . . . . . . Recycled Matter . | . . . . . . . . . . . . . . . . . . . . . . . . . . Retrieved Matter . | . . . . . . . . . . . . . . . . . . . . . . . . . . Retrieved Components 14 | . 12 . . . . . . . . . . . . . . . . . . . . 2 . . . Parts Scanalyzed . | . . . . . . . . . . . . . . . . . . . . . . . . . . Part Schematics Acquired . | . . . . . . . . . . . . . . . . . . . . . . . . . . Parts Damaged . | . . . . . . . . . . . . . . . . . . . . . . . . . . Bothacking | -11 -10 -10 -8 -8 -8 -8 -7 -7 -7 -7 -6 -6 -6 -6 -6 -5 -5 -5 -5 -5 -5 -4 -4 -4 -4 ------------ Run | Yrd Mat Sub Mat Gar Mat Gar Fac Gar Fac Gar Fac Ext Cet Arc Hub Fac Was Fac Gar Fac Gar Fac Gar Fac Gar Used RIF Installer 10 | . . . . 2 . 2 . 1 . 1 . . . . . . . . 1 . 2 . 1 . . Hotswap 1 | . . . . 1 . . . . . . . . . . . . . . . . . . . . . Signal Jammer 1 | . . . . . . . . . . . . . . . . . . . . . 1 . . . . Zone Cloak 1 | . . . . . . . . . . . . . . . . . . . . . 1 . . . . Robot Detection 1 | . . . . . . . . 1 . . . . . . . . . . . . . . . . . Watcher Feeds 1 | . . . . . . 1 . . . . . . . . . . . . . . . . . . . Patrol Navigation 1 | . . . . . . 1 . . . . . . . . . . . . . . . . . . . Alert ID Control 1 | . . . . . . . . . . . . . . . . . . . 1 . . . . . . Structural Interface 1 | . . . . . . . . . . . . . . . . . . . . . . . 1 . . Autooverride 1 | . . . . . . . . . . 1 . . . . . . . . . . . . . . . Robots Hacked 126 | . . . . . 4 . 2 1 3 . 6 20 3 1 9 2 6 4 10 2 11 22 3 17 . Non-combat 49 | . . . . . 3 . 2 . 3 . 5 5 . 1 5 2 . . 1 . . 12 . 10 . Combat 77 | . . . . . 1 . . 1 . . 1 15 3 . 4 . 6 4 9 2 11 10 3 7 . Autooverrided 12 | . . . . . . . . . . . . 4 . . . . . . . 1 2 2 1 2 . Robot Hacks Applied 147 | . . . . . 4 . 4 1 12 . 15 18 3 1 10 2 7 5 12 1 9 23 2 18 . parse_system 18 | . . . . . 1 . . 1 . . . 5 3 . 2 . . . 3 . 1 1 1 . . no_distress 2 | . . . . . . . 1 . . . . 1 . . . . . . . . . . . . . generate_echo 3 | . . . . . . . 1 . . . 2 . . . . . . . . . . . . . . find_chute 1 | . . . . . . . . . . . . . . . . . . . . . . 1 . . . ignore_repairs 1 | . . . . . . . . . . . . 1 . . . . . . . . . . . . . map_walls 5 | . . . . . 1 . 1 . . . 2 . . . 1 . . . . . . . . . . map_earth 6 | . . . . . . . . . . . . . . . . . . . . . . 5 . 1 . drop_inventory 14 | . . . . . 1 . . . . . . 3 . . 3 . . . . . . 3 . 4 . recall_reinforcements 1 | . . . . . . . . . . . . . . . . . . . . . . . . 1 . find_recycling 1 | . . . . . . . . . . . 1 . . . . . . . . . . . . . . check_alert 1 | . . . . . . . . . . . . . . 1 . . . . . . . . . . . purge_threat 16 | . . . . . . . . . 9 . 5 . . . . . . . . . . . . 2 . find_terminals 1 | . . . . . . . . . . . 1 . . . . . . . . . . . . . . locate_traps 1 | . . . . . . . . . . . 1 . . . . . . . . . . . . . . disarm_traps 1 | . . . . . . . . . . . . 1 . . . . . . . . . . . . . summon_haulers 1 | . . . . . . . . . . . . . . . . . . . . . . 1 . . . map_route 9 | . . . . . . . . . 2 . 1 . . . 1 1 . . . . . 2 . 2 . mark_security 3 | . . . . . . . . . 1 . 1 . . . 1 . . . . . . . . . . ignore_targets 7 | . . . . . . . . . . . . . . . . . 7 . . . . . . . . find_garrison 4 | . . . . . . . . . . . . . . . . . . 2 . . . 1 . 1 . spike_heat 1 | . . . . . . . . . . . . . . . . . . . 1 . . . . . . amplify_resonance 3 | . . . . . . . . . . . . . . . . . . . 2 . . . 1 . . reboot_system 3 | . . . . . . . . . . . . . . . 2 . . . . . 1 . . . . overwrite_iff 8 | . . . . . . . . . . . . . . . . . . . 1 1 4 2 . . . streamctrl_low 2 | . . . . . . . . . . . . . . . . . . . . . . 1 . 1 . streamctrl_high 2 | . . . . . . . . . . . . . . . . . . . . . . 1 . 1 . formatsys_low 6 | . . . . . 1 . 1 . . . . . . . . 1 . . . . . 1 . 2 . formatsys_high 26 | . . . . . . . . . . . 1 7 . . . . . 3 5 . 3 4 . 3 . Relay Couplers Released 103 | . . . . 3 . 9 . 28 . 14 . 4 . . 4 3 . . 21 . 8 . 9 . . Machine Destruction 95 | . . . . 3 . 9 . 28 . 14 . . . . . 3 . . 21 . 8 . 9 . . Programmers 8 | . . . . . . . . . . . . 4 . . 4 . . . . . . . . . . Attached 20 | . . . . . 1 . 1 1 1 1 1 2 . . 1 2 . . 3 . 1 3 2 . . Fabnet Peak Effective % . | . . . . . . . . . . . . . . . . . . . . . . . . . . Robots Rewired 17 | . . . . . . . . . . . . 13 . . . . . . 4 . . . . . . Allies Hacked 17 | . . . . . . 4 1 2 . 1 . . . . . . . 3 2 1 . . . 3 . Hacks Repelled 7 | . . . . . . . . 2 . 3 . . . . . . . . . . 1 . . 1 . Allies | -11 -10 -10 -8 -8 -8 -8 -7 -7 -7 -7 -6 -6 -6 -6 -6 -5 -5 -5 -5 -5 -5 -4 -4 -4 -4 -------- Run | Yrd Mat Sub Mat Gar Mat Gar Fac Gar Fac Gar Fac Ext Cet Arc Hub Fac Was Fac Gar Fac Gar Fac Gar Fac Gar Total Allies 93 | . . . . . 1 . 1 2 . 2 1 32 5 . . 1 . 3 10 2 9 11 3 10 . Largest Group 22 | . . . . . 1 . 1 2 2 2 3 21 22 17 16 3 3 4 6 8 8 8 7 5 . Highest-Rated Group 1147 | . . . . . 14 . 10 157 157 157 83 795 1147 982 823 183 152 197 242 318 326 317 230 217 . Highest-Rated Ally 159 | . . . . . 14 . 10 95 95 95 32 159 159 159 96 96 78 78 61 49 49 49 49 56 . Total Orders 30 | . . . . 2 2 . . . . 2 4 . . . . 2 1 2 7 . . 7 . 1 . STAY 9 | . . . . 1 . . . . . 1 2 . . . . . . . 3 . . 2 . . . ROAM 3 | . . . . . . . . . . . . . . . . 1 . 1 . . . . . 1 . FOLLOW 9 | . . . . 1 . . . . . 1 2 . . . . . . . 3 . . 2 . . . AID 3 | . . . . . 1 . . . . . . . . . . 1 1 . . . . . . . . DROP 4 | . . . . . 1 . . . . . . . . . . . . 1 1 . . 1 . . . PICKUP 1 | . . . . . . . . . . . . . . . . . . . . . . 1 . . . COLLECT 1 | . . . . . . . . . . . . . . . . . . . . . . 1 . . . Ally Attacks 1968 | . . . 5 70 111 61 25 145 36 146 46 155 59 22 192 61 170 108 119 27 106 94 87 123 . Total Damage 56290 | . . . 186 1515 2769 1097 493 2583 820 3401 761 3947 1481 541 5689 2814 3380 3916 3548 1030 3676 3860 3492 5291 . Kills 408 | . . . 1 24 30 11 2 28 8 35 7 22 10 4 38 15 6 25 27 5 22 26 30 32 . Allies Corrupted 9 | . . . . . . 2 1 . . . . . . . 2 . . . . . 1 . . 3 . Allies Melted . | . . . . . . . . . . . . . . . . . . . . . . . . . . Borg Created 56 | . . . 2 5 1 7 3 5 . 2 . 4 1 . 2 1 . 8 5 . 1 2 . 7 . Largest Collective 6 | . . . 2 5 4 5 1 5 . 5 . 5 5 . 2 1 . 6 4 . 5 5 . 4 . Intel | -11 -10 -10 -8 -8 -8 -8 -7 -7 -7 -7 -6 -6 -6 -6 -6 -5 -5 -5 -5 -5 -5 -4 -4 -4 -4 ------- Run | Yrd Mat Sub Mat Gar Mat Gar Fac Gar Fac Gar Fac Ext Cet Arc Hub Fac Was Fac Gar Fac Gar Fac Gar Fac Gar Active Infowar (turns) 9599 | 21 586 332 . 1650 . . . 278 423 1679 310 69 521 502 445 557 78 298 13 291 37 1462 2 45 . Sensors 1650 | . . . . 1650 . . . . . . . . . . . . . . . . . . . . . A.S.S. 1 | . . . . . . . . . . . . . . . . . . . . . . . 1 . . Terrain 377 | . . 332 . . . . . . . . . . . . . . . . . . . . . 45 . Structural 3479 | . . . . . . . . . 423 7 299 . . . 118 557 78 243 . 291 . 1462 1 . . Seismic 607 | 21 586 . . . . . . . . . . . . . . . . . . . . . . . . Machine Analysis 1537 | . . . . . . . . . . . . 69 521 502 445 . . . . . . . . . . Jamming 2246 | . . . . . . . . 278 . 1672 97 . . . 94 . . 55 13 . 37 . . . . Robot Analysis Total 3 | . 2 . . . . . . . . . . 1 . . . . . . . . . . . . . Derelict Logs Recovered 2 | . . 2 . . . . . . . . . . . . . . . . . . . . . . . Drone Launches . | . . . . . . . . . . . . . . . . . . . . . . . . . . Drone Recoveries . | . . . . . . . . . . . . . . . . . . . . . . . . . . Exploration | -11 -10 -10 -8 -8 -8 -8 -7 -7 -7 -7 -6 -6 -6 -6 -6 -5 -5 -5 -5 -5 -5 -4 -4 -4 -4 ------------- Run | Yrd Mat Sub Mat Gar Mat Gar Fac Gar Fac Gar Fac Ext Cet Arc Hub Fac Was Fac Gar Fac Gar Fac Gar Fac Gar Turns Passed 26131 | 63 973 1111 199 2372 1383 982 795 2033 504 1683 795 1309 521 502 767 745 555 1192 1770 441 933 1900 1142 1256 205 Spaces Moved 11731 | 21 497 580 54 773 638 446 358 854 224 727 200 748 245 212 322 330 219 453 742 180 361 1039 631 697 180 Core 245 | . . . . . . . . . . . . . . . . 1 . . . . . . . 70 174 Treads 1737 | 21 497 580 54 579 . . . . . . . . . . . . . . . . . . . . 6 Legs . | . . . . . . . . . . . . . . . . . . . . . . . . . . Wheels 9749 | . . . . 194 638 446 358 854 224 727 200 748 245 212 322 329 219 453 742 180 361 1039 631 627 . Hover . | . . . . . . . . . . . . . . . . . . . . . . . . . . Flight . | . . . . . . . . . . . . . . . . . . . . . . . . . . Fastest Speed 50 | 160 160 160 320 175 175 180 165 165 175 205 140 140 140 155 155 175 220 220 175 210 165 150 150 50 50 Average Speed 181 | 160 160 160 320 283 189 180 170 186 200 205 155 149 151 155 168 188 220 220 196 213 181 157 155 151 54 Slowest Speed 800 | 160 160 160 320 320 280 180 190 205 205 205 205 155 155 155 205 800 220 220 220 220 210 210 180 180 170 Overloaded Moves . | . . . . . . . . . . . . . . . . . . . . . . . . . . Propulsion Burnouts . | . . . . . . . . . . . . . . . . . . . . . . . . . . Robots Hopped . | . . . . . . . . . . . . . . . . . . . . . . . . . . Potential Cave-ins . | . . . . . . . . . . . . . . . . . . . . . . . . . . Cave-ins Triggered . | . . . . . . . . . . . . . . . . . . . . . . . . . . Exploration Rate (%) 48 | 2 83 59 7 80 56 62 8 94 7 94 6 88 85 100 42 18 85 21 63 5 52 35 79 25 13 Regions Visited 25 Branch Regions 5 Pre-discovered Areas 1 | . . 1 . . . . . . . . . . . . . . . . . . . . . . . Known Exits Taken 8 | . . . 1 . 1 . 1 . 1 . . . . . . . . 1 . 1 . 1 . 1 . Unknown Exits Taken 8 | 1 1 1 . . . . . . . . 1 1 1 1 1 . . . . . . . . . . Scrap Searched . | . . . . . . . . . . . . . . . . . . . . . . . . . . Spaces Dug 34 | . . . . . . . 4 . 1 . . 2 3 . 1 4 . 3 . 2 2 5 . 7 . Terrain Destroyed 117 | . . . . 75 . . 4 . 1 . . 2 3 . 1 4 . 3 5 3 3 5 . 8 . Melee 18 | . . . . . . . 4 . 1 . . 2 3 . 1 4 . 3 . . . . . . . Projectile 19 | . . . . . . . . . . . . . . . . . . . 1 2 3 5 . 8 . AOE 80 | . . . . 75 . . . . . . . . . . . . . . 4 1 . . . . . Terrain Rammed . | . . . . . . . . . . . . . . . . . . . . . . . . . . Walls Destroyed . | . . . . . . . . . . . . . . . . . . . . . . . . . . Machines Disabled . | . . . . . . . . . . . . . . . . . . . . . . . . . . Actions | -11 -10 -10 -8 -8 -8 -8 -7 -7 -7 -7 -6 -6 -6 -6 -6 -5 -5 -5 -5 -5 -5 -4 -4 -4 -4 --------- Run | Yrd Mat Sub Mat Gar Mat Gar Fac Gar Fac Gar Fac Ext Cet Arc Hub Fac Was Fac Gar Fac Gar Fac Gar Fac Gar Total 15570 | 35 618 709 79 935 789 587 512 1133 270 881 670 878 351 383 513 430 270 594 973 223 581 1267 766 856 267 Wait 1890 | . 36 71 16 72 72 64 105 42 15 50 438 38 66 167 135 54 10 70 51 18 99 85 47 53 16 Move 11711 | 20 496 579 53 772 638 445 358 853 223 726 199 747 244 211 321 330 218 452 741 180 360 1038 630 697 180 Hop . | . . . . . . . . . . . . . . . . . . . . . . . . . . Pick Up 244 | 3 24 6 5 20 28 8 7 24 4 17 3 5 5 . 8 6 3 8 19 1 11 10 8 11 . Fast Attach 67 | 1 1 2 . 1 6 . 2 4 . 1 . 3 1 . . 3 3 2 2 2 . 19 7 7 . Attach 37 | . . 1 1 3 1 . 3 2 1 1 3 2 . . 1 3 1 . . 1 5 3 1 4 . Detach 8 | . . . . . . . . . . . . 2 . . . 1 2 . . 1 . . 1 1 . Swap 287 | 3 4 7 . 18 9 2 6 17 5 10 6 6 5 3 14 13 4 9 36 9 23 41 15 22 . Drop 240 | 1 21 10 2 22 13 8 6 29 4 14 . 4 2 . 7 5 3 8 15 2 6 28 15 15 . Fire 478 | 7 33 33 . 14 10 3 8 1 17 25 21 45 11 2 16 6 26 10 35 9 46 40 26 34 . Melee 213 | . . . . . 8 18 14 106 1 . . 4 8 . 4 8 . 22 20 . . . . . . Ram 29 | . . . . . . . . . . . . . . . . . . . . . . . . . 29 Kick . | . . . . . . . . . . . . . . . . . . . . . . . . . . Crush 30 | . 3 . . . . . . . . . . . . . . . . . . . . . . . 27 Escape Stasis 190 | . . . . 8 . 32 . 49 . 24 . 8 . . . . . . 16 . 23 . 15 . 15 Rewire 37 | . . . . . . . . 1 . . . . . . 1 . . 5 25 . 1 1 1 2 . Trap . | . . . . . . . . . . . . . . . . . . . . . . . . . . Miscellaneous 109 | . . . 2 5 4 7 3 5 . 13 . 14 9 . 6 1 . 8 13 . 7 2 . 10 . Route ------- -11/Scrapyard -10/Materials (discovered 4 exits: [*Mat x2] / [*Min] / *Sub) -10/Subcaves (discovered 2 exits: *Mat / [*Rec]) -8/Materials -8/Garrison (discovered 2 exits: *Mat x2) -8/Materials (discovered 3 exits: *Fac x2 / Gar) -8/Garrison (discovered 3 exits: *Fac x3) -7/Factory -7/Garrison (discovered 3 exits: *Fac x3) -7/Factory -7/Garrison (discovered 3 exits: *Fac x3) -6/Factory (discovered 2 exits: *Fac / *Ext) -6/Extension (discovered 2 exits: *Fac / *Cet) -6/Cetus (discovered 2 exits: *Fac / *Arc) -6/Archives (discovered 3 exits: *Fac / *Hub x2) -6/Hub_04(d) -5/Factory -5/Waste -5/Factory -5/Garrison (discovered 4 exits: *Fac x4) -5/Factory -5/Garrison -4/Factory (discovered 3 exits: *Res x2 / Gar) -4/Garrison (discovered 3 exits: *Fac x3) -4/Factory (discovered 3 exits: *Res / [*Upp] / Gar) -4/Garrison History --------- Turn | Location | Event 27 | -11/Scrapyard | Discovered new exit (range 3) 64 | -11/Scrapyard | Entered Materials 342 | -10/Materials | Build established: Mutant 396 | -10/Materials | Discovered new exit (range 3) 464 | -10/Materials | Discovered new exit (range 12) 612 | -10/Materials | Discovered new exit (range 14) 1024 | -10/Materials | Discovered new exit (range 9) 1037 | -10/Materials | Entered Subcaves 1046 | -10/Subcaves | Discovered new exit (range 12) 1120 | -10/Subcaves | Shifting Twisted Machinery released Sub. Machine Gun 1371 | -10/Subcaves | Learned location of Mines (-10) 1398 | -10/Subcaves | Ambushed by angry Subdweller bent on revenge 1545 | -10/Subcaves | Visited 4L-MR0's lab 1553 | -10/Subcaves | Learned Materials interactive machine intel 1568 | -10/Subcaves | Found Prototype Power Core 1572 | -10/Subcaves | Identified Meta Core 1575 | -10/Subcaves | Found Prototype Special Melee Weapon 1701 | -10/Subcaves | Shifting Twisted Machinery released Sub. Machine Gun 1708 | -10/Subcaves | Shifting Twisted Machinery released Battle Cannon 1816 | -10/Subcaves | Shifting Twisted Machinery released Battle Rifle 1839 | -10/Subcaves | Shifting Twisted Machinery released Sub. Power Source 2103 | -10/Subcaves | Discovered new exit (range 4) 2128 | -10/Subcaves | System corruption reached 10% 2148 | -10/Subcaves | Entered Materials 2148 | -8/Materials | Evolved 4 slots: Weapon x4 2149 | -8/Materials | Loaded intel: 19 interactive machine locations 2150 | -8/Materials | Identified 1B-0RG's Assimilator 2210 | -8/Materials | Assimilating Defender 3a into Collective. 2292 | -8/Materials | Garrison activated, responded to threat 2302 | -8/Materials | Assimilating Defender 3b into Collective. 2337 | -8/Materials | Identified exit to Garrison 2347 | -8/Materials | Entered Garrison 2347 | -8/Garrison | Accompanied by 2 allies 2525 | -8/Garrison | Phase Generator disabled 2664 | -8/Garrison | Assimilating Defender 3c into Collective. 2695 | -8/Garrison | Assimilating Commando 3a into Collective. 2883 | -8/Garrison | Triggered checkpoint 2991 | -8/Garrison | Installed Relay Interface Framework 3167 | -8/Garrison | Triggered checkpoint 3170 | -8/Garrison | Assimilating Trooper 3a into Collective. 3366 | -8/Garrison | Assimilating Hacker 3a into Collective. 3370 | -8/Garrison | Assimilating Hacker 3b into Collective. 3558 | -8/Garrison | Discovered new exit (range 11) 3571 | -8/Garrison | Triggered checkpoint 3889 | -8/Garrison | Triggered checkpoint 3981 | -8/Garrison | Triggered checkpoint 4024 | -8/Garrison | Triggered checkpoint 4063 | -8/Garrison | Expanded RIF knowledge: Hotswap 4086 | -8/Garrison | Discovered new exit (range 12) 4573 | -8/Garrison | Garrison Relay disabled 4719 | -8/Garrison | Entered Materials 4719 | -8/Materials | Accompanied by 5 allies 4924 | -8/Materials | Build established: Bothacker-Mutant 5537 | -8/Materials | Discovered new exit (range 16) 5838 | -8/Materials | Central database locked down 5919 | -8/Materials | First assault squad dispatched 6005 | -8/Materials | Lost 3 allies 6027 | -8/Materials | Discovered new exit (range 6) 6030 | -8/Materials | Assimilating Transporter 3a into Collective. 6102 | -8/Materials | Identified exit to Garrison 6102 | -8/Materials | Entered Garrison 6102 | -8/Garrison | Accompanied by 4 allies 6130 | -8/Garrison | Expanded RIF knowledge: Patrol Navigation 6158 | -8/Garrison | Garrison Relay disabled 6336 | -8/Garrison | Triggered checkpoint 6343 | -8/Garrison | Assimilating Defender 3d into Collective. 6384 | -8/Garrison | Triggered checkpoint 6393 | -8/Garrison | Triggered checkpoint 6396 | -8/Garrison | Triggered checkpoint 6438 | -8/Garrison | Lost 5 allies 6447 | -8/Garrison | Assimilating Trooper 3b into Collective. 6453 | -8/Garrison | Assimilating Trooper 3c into Collective. 6456 | -8/Garrison | Assimilating Trooper 3d into Collective. 6509 | -8/Garrison | Assimilating Trooper 3e into Collective. 6621 | -8/Garrison | Discovered new exit (range 9) 6650 | -8/Garrison | Triggered checkpoint 6763 | -8/Garrison | Discovered new exit (range 68) 6763 | -8/Garrison | Discovered new exit (range 49) 6763 | -8/Garrison | Discovered new exit (range 21) 6777 | -8/Garrison | Garrison Relay disabled 7019 | -8/Garrison | Assimilating Hacker 3c into Collective. 7026 | -8/Garrison | Assimilating Hacker 3d into Collective. 7055 | -8/Garrison | Expanded RIF knowledge: Watcher Feeds 7084 | -8/Garrison | Entered Factory 7084 | -7/Factory | Accompanied by 2 allies 7084 | -7/Factory | Evolved 2 slots: Utility x2 7119 | -7/Factory | Identified exit to DSF 7190 | -7/Factory | Assimilating Soldier 4a into Collective. 7243 | -7/Factory | Assimilating Trooper 4a into Collective. 7358 | -7/Factory | Build established: Botlord-Mutant 7574 | -7/Factory | Assimilating Sage 4a into Collective. 7878 | -7/Factory | Identified exit to Garrison 7879 | -7/Factory | Entered Garrison 7879 | -7/Garrison | Accompanied by 1 ally 8017 | -7/Garrison | Assimilating Slicer 4a into Collective. 8048 | -7/Garrison | Triggered checkpoint 8093 | -7/Garrison | Triggered checkpoint 8165 | -7/Garrison | Discovered new exit (range 10) 8247 | -7/Garrison | Triggered checkpoint 8250 | -7/Garrison | Assimilating Trooper 4b into Collective. 8267 | -7/Garrison | Garrison Relay disabled 8542 | -7/Garrison | Discovered new exit (range 10) 8688 | -7/Garrison | Garrison Relay disabled 8834 | -7/Garrison | Expanded RIF knowledge: Robot Detection 9107 | -7/Garrison | Found embedded Infiltrators 9163 | -7/Garrison | Garrison Relay disabled 9252 | -7/Garrison | Garrison Relay disabled 9258 | -7/Garrison | Garrison Relay disabled 9260 | -7/Garrison | Assimilating Hacker 4a into Collective. 9262 | -7/Garrison | Garrison Relay disabled 9326 | -7/Garrison | Garrison Relay disabled 9650 | -7/Garrison | Assimilating Hacker 4b into Collective. 9660 | -7/Garrison | Assimilating Hacker 4c into Collective. 9715 | -7/Garrison | Discovered new exit (range 14) 9742 | -7/Garrison | Garrison Relay disabled 9912 | -7/Garrison | Entered Factory 9912 | -7/Factory | Accompanied by 7 allies 10071 | -7/Factory | Identified exit to Garrison 10416 | -7/Factory | Entered Garrison 10416 | -7/Garrison | Accompanied by 7 allies 10436 | -7/Garrison | Expanded RIF knowledge: Autooverride 10508 | -7/Garrison | Triggered checkpoint 10547 | -7/Garrison | Garrison Relay disabled 10840 | -7/Garrison | Triggered checkpoint 10866 | -7/Garrison | Triggered checkpoint 10916 | -7/Garrison | Triggered checkpoint 11002 | -7/Garrison | Rescued a captive Derelict 11007 | -7/Garrison | Rescued a captive Derelict 11046 | -7/Garrison | Discovered new exit (range 15) 11056 | -7/Garrison | Triggered checkpoint 11121 | -7/Garrison | Garrison Relay disabled 11307 | -7/Garrison | Assimilating Guardian 4a into Collective. 11311 | -7/Garrison | Assimilating Guardian 4b into Collective. 11424 | -7/Garrison | Triggered checkpoint 11488 | -7/Garrison | Garrison Relay disabled 11498 | -7/Garrison | Triggered checkpoint 11545 | -7/Garrison | Discovered new exit (range 12) 11806 | -7/Garrison | Triggered checkpoint 11830 | -7/Garrison | Discovered new exit (range 15) 12099 | -7/Garrison | Entered Factory 12099 | -6/Factory | Accompanied by 7 allies 12099 | -6/Factory | Evolved 2 slots: Utility x2 12197 | -6/Factory | Attached Meta Core, gained temporary slots: Propulsion, Utility, Weapon 12308 | -6/Factory | P-60 Hacker assimilated allied UC-D3E(b) 12329 | -6/Factory | Discovered new exit (range 18) 12371 | -6/Factory | Discovered new exit (range 16) 12894 | -6/Factory | Entered Extension 12894 | -6/Extension | Accompanied by 6 allies 13060 | -6/Extension | Rescued a captive Derelict 13406 | -6/Extension | Spotted B-75 Beast 13430 | -6/Extension | Allies destroyed B-75 Beast 13451 | -6/Extension | Spotted B-75 Beast 13461 | -6/Extension | Allies destroyed B-75 Beast 13493 | -6/Extension | Lost 8 allies 13501 | -6/Extension | Assimilating Guardian 5c into Collective. 13507 | -6/Extension | Rescued a captive Derelict 13507 | -6/Extension | Rescued a captive Derelict 13795 | -6/Extension | Rescued a captive Derelict 13812 | -6/Extension | Rescued a captive Derelict 13840 | -6/Extension | Assimilating Guardian 5d into Collective. 13850 | -6/Extension | Assimilating Soldier 5f into Collective. 13855 | -6/Extension | Assimilating Soldier 5g into Collective. 13878 | -6/Extension | Rescued a captive Derelict 13879 | -6/Extension | Rescued A7 13879 | -6/Extension | Lost 5 allies 13992 | -6/Extension | Rescued a captive Derelict 14113 | -6/Extension | Discovered new exit (range 10) 14114 | -6/Extension | Discovered new exit (range 6) 14203 | -6/Extension | Entered Cetus 14203 | -6/Cetus | Accompanied by 26 allies (A7) 14208 | -6/Cetus | Acquired a Cetus Manufacturing Module code from A7 14229 | -6/Cetus | Allies destroyed Cetus Guard 14230 | -6/Cetus | Spotted Cetus Guard 14230 | -6/Cetus | Spotted Cetus Guard 14234 | -6/Cetus | Spotted Cetus Guard 14238 | -6/Cetus | Destroyed Cetus Guard 14245 | -6/Cetus | Allies destroyed Cetus Guard 14248 | -6/Cetus | Allies destroyed Cetus Guard 14275 | -6/Cetus | Lost 3 allies 14345 | -6/Cetus | Started Cetus Manufacturing Module 14370 | -6/Cetus | Manufactured an Enhanced Grunt 14381 | -6/Cetus | Escorted A7 to Cetus Mainframe 14395 | -6/Cetus | Manufactured an Enhanced Grunt 14420 | -6/Cetus | Manufactured an Enhanced Grunt 14438 | -6/Cetus | Discovered new exit (range 16) 14445 | -6/Cetus | Manufactured an Enhanced Grunt 14464 | -6/Cetus | Discovered new exit (range 27) 14470 | -6/Cetus | Manufactured an Enhanced Grunt 14475 | -6/Cetus | Spotted Cetus Guard 14475 | -6/Cetus | Spotted Cetus Guard 14478 | -6/Cetus | Spotted Cetus Guard 14482 | -6/Cetus | Spotted Cetus Guard 14482 | -6/Cetus | Allies destroyed Cetus Guard 14488 | -6/Cetus | Allies destroyed Cetus Guard 14495 | -6/Cetus | Allies destroyed Cetus Guard 14497 | -6/Cetus | Allies destroyed Cetus Guard 14525 | -6/Cetus | Lost 5 allies 14553 | -6/Cetus | Assimilating BI-4GS(l) into Collective. 14598 | -6/Cetus | Met Revision 17 14724 | -6/Cetus | Entered Archives 14724 | -6/Archives | Accompanied by 22 allies (A7) 14729 | -6/Archives | Received a hacking code to weaken MAIN.C 14750 | -6/Archives | Discovered new exit (range 22) 14764 | -6/Archives | Unable to access archive contents 14770 | -6/Archives | Discovered new exit (range 15) 14783 | -6/Archives | Unable to access archive contents 14789 | -6/Archives | Discovered new exit (range 15) 14804 | -6/Archives | Unable to access archive contents 14820 | -6/Archives | Unable to access archive contents 15226 | -6/Archives | Entered Hub_04(d) 15226 | -6/Hub_04(d) | Accompanied by 21 allies 15281 | -6/Hub_04(d) | Identified exit to Garrison 15525 | -6/Hub_04(d) | Discovered new exit (range 27) 15576 | -6/Hub_04(d) | First assault squad dispatched 15620 | -6/Hub_04(d) | Garrison activated, responded to threat 15686 | -6/Hub_04(d) | Lost 8 allies 15788 | -6/Hub_04(d) | Network Hub disabled 15813 | -6/Hub_04(d) | Spotted Lightning 15822 | -6/Hub_04(d) | Spotted Lightning 15822 | -6/Hub_04(d) | Spotted Lightning 15834 | -6/Hub_04(d) | Assimilating Lightning into Collective. 15837 | -6/Hub_04(d) | Allies destroyed Lightning 15842 | -6/Hub_04(d) | Assimilating Lightning into Collective. 15869 | -6/Hub_04(d) | Lost 4 allies 15993 | -6/Hub_04(d) | Entered Factory 15993 | -5/Factory | Accompanied by 4 allies 15993 | -5/Factory | Evolved 2 slots: Power x1, Utility x1 16468 | -5/Factory | Discovered new exit (range 6) 16486 | -5/Factory | Identified exit to Upper Caves 16580 | -5/Factory | Assimilating Informer 6a into Collective. 16593 | -5/Factory | First assault squad dispatched 16722 | -5/Factory | Fabricated Lrn. Proton Cannon? 16738 | -5/Factory | Sucked down chute 16738 | -5/Factory | Entered Waste 16768 | -5/Waste | 3 allies followed down the chute 16772 | -5/Waste | Spotted C-40 Crusher 16780 | -5/Waste | Spotted C-40 Crusher 16792 | -5/Waste | Spotted C-40 Crusher 16797 | -5/Waste | Allies destroyed C-40 Crusher 16802 | -5/Waste | Spotted C-40 Crusher 16817 | -5/Waste | Spotted C-40 Crusher 16832 | -5/Waste | Allies destroyed C-40 Crusher 16851 | -5/Waste | Allies destroyed C-40 Crusher 16856 | -5/Waste | Spotted C-40 Crusher 17024 | -5/Waste | Found Prototype Launcher 17031 | -5/Waste | Discovered new exit (range 13) 17040 | -5/Waste | Allies destroyed C-40 Crusher 17186 | -5/Waste | Identified Point Singularity Launcher 17190 | -5/Waste | Found Adv. Force Booster 17287 | -5/Waste | Identified exit to Factory 17293 | -5/Waste | Entered Factory 17293 | -5/Factory | Accompanied by 2 allies 17362 | -5/Factory | System corruption reached 10% 17585 | -5/Factory | Assimilating Conveyor 6a into Collective. 17707 | -5/Factory | Assimilating Informer 6b into Collective. 17710 | -5/Factory | Assimilating Conveyor 6b into Collective. 17740 | -5/Factory | Assimilating Conveyor 6c into Collective. 17836 | -5/Factory | Assimilating Conveyor 6d into Collective. 17863 | -5/Factory | Assimilating Sage 6a into Collective. 17887 | -5/Factory | Assimilating Sage 6b into Collective. 18217 | -5/Factory | Assimilating Sage 6c into Collective. 18477 | -5/Factory | Identified exit to Garrison 18485 | -5/Factory | Entered Garrison 18485 | -5/Garrison | Accompanied by 9 allies 18533 | -5/Garrison | Triggered checkpoint 18575 | -5/Garrison | Expanded RIF knowledge: Alert ID Control 18613 | -5/Garrison | P-70 Sage assimilated allied Slayer 6a 18646 | -5/Garrison | Found Exp. Targeting Computer 18649 | -5/Garrison | Lost 4 allies 18783 | -5/Garrison | Triggered checkpoint 18805 | -5/Garrison | Triggered checkpoint 18862 | -5/Garrison | Lost 3 allies 18981 | -5/Garrison | Triggered checkpoint 18997 | -5/Garrison | Assimilating Beamer 6a into Collective. 19016 | -5/Garrison | Garrison Relay disabled 19023 | -5/Garrison | Lost 4 allies 19237 | -5/Garrison | Assimilating Informer 6c into Collective. 19293 | -5/Garrison | Triggered checkpoint 19297 | -5/Garrison | Discovered new exit (range 13) 19330 | -5/Garrison | Identified exit to Factory 19361 | -5/Garrison | Triggered checkpoint 19385 | -5/Garrison | Garrison Relay disabled 19487 | -5/Garrison | Discovered exit to Factory (range 93) 19487 | -5/Garrison | Discovered exit to Factory (range 30) 19487 | -5/Garrison | Discovered exit to Factory (range 20) 19487 | -5/Garrison | Discovered exit to Factory (range 34) 19640 | -5/Garrison | Spotted B-75 Beast 19650 | -5/Garrison | Allies destroyed B-75 Beast 19771 | -5/Garrison | Triggered checkpoint 19842 | -5/Garrison | Garrison Relay disabled 20055 | -5/Garrison | Triggered checkpoint 20058 | -5/Garrison | Assimilating Soldier 6f into Collective. 20061 | -5/Garrison | Assimilating Soldier 6g into Collective. 20067 | -5/Garrison | Assimilating Soldier 6h into Collective. 20086 | -5/Garrison | Garrison Relay disabled 20151 | -5/Garrison | Garrison Relay disabled 20255 | -5/Garrison | Entered Factory 20255 | -5/Factory | Accompanied by 10 allies 20684 | -5/Factory | Identified exit to Garrison 20696 | -5/Factory | Entered Garrison 20696 | -5/Garrison | Accompanied by 10 allies 20741 | -5/Garrison | Assimilating Master 6a into Collective. 20764 | -5/Garrison | Expanded RIF knowledge: Signal Jamming 20836 | -5/Garrison | Triggered checkpoint 20872 | -5/Garrison | Garrison Relay disabled 20994 | -5/Garrison | Triggered checkpoint 21069 | -5/Garrison | Spotted B-75 Beast 21076 | -5/Garrison | Triggered checkpoint 21095 | -5/Garrison | Allies destroyed B-75 Beast 21125 | -5/Garrison | Lost 3 allies 21258 | -5/Garrison | Triggered checkpoint 21378 | -5/Garrison | Discovered new exit (range 12) 21391 | -5/Garrison | Expanded RIF knowledge: Zone Cloak 21417 | -5/Garrison | Identified exit to Factory 21424 | -5/Garrison | Triggered checkpoint 21469 | -5/Garrison | Triggered checkpoint 21531 | -5/Garrison | Garrison Relay disabled 21629 | -5/Garrison | Entered Factory 21629 | -4/Factory | Accompanied by 9 allies 21629 | -4/Factory | Evolved 2 slots: Utility x2 22051 | -4/Factory | Discovered new exit (range 18) 22206 | -4/Factory | Identified exit to Research 22479 | -4/Factory | Lost 4 allies 22507 | -4/Factory | Found Prototype Processor 22507 | -4/Factory | Identified Exp. Signal Interpreter 22762 | -4/Factory | Assimilating Sage 7a into Collective. 23024 | -4/Factory | Discovered exit to Research (range 20) 23120 | -4/Factory | Lost 4 allies 23133 | -4/Factory | Assimilating Sage 7b into Collective. 23380 | -4/Factory | Fabricated Remote Force Field? 23482 | -4/Factory | Garrison activated, responded to threat 23508 | -4/Factory | Identified exit to Garrison 23529 | -4/Factory | Entered Garrison 23529 | -4/Garrison | Accompanied by 9 allies 23562 | -4/Garrison | Rescued a captive Derelict 23565 | -4/Garrison | Rescued a captive Derelict 23681 | -4/Garrison | Triggered checkpoint 23687 | -4/Garrison | Triggered checkpoint 23727 | -4/Garrison | Triggered checkpoint 23803 | -4/Garrison | Triggered checkpoint 23819 | -4/Garrison | H-XX Assembler disabled 23841 | -4/Garrison | Found Prototype Device 23841 | -4/Garrison | Identified Active Sensor Suite 23940 | -4/Garrison | Garrison Relay disabled 23977 | -4/Garrison | Discovered new exit (range 8) 23986 | -4/Garrison | Identified exit to Factory 24128 | -4/Garrison | Discovered exit to Factory (range 14) 24139 | -4/Garrison | Triggered checkpoint 24155 | -4/Garrison | Garrison Relay disabled 24377 | -4/Garrison | Expanded RIF knowledge: Structural Interface 24388 | -4/Garrison | Discovered exit to Factory (range 12) 24493 | -4/Garrison | Triggered checkpoint 24520 | -4/Garrison | Garrison Relay disabled 24671 | -4/Garrison | Entered Factory 24671 | -4/Factory | Accompanied by 6 allies 24872 | -4/Factory | Discovered new exit (range 6) 24876 | -4/Factory | Lost 3 allies 25014 | -4/Factory | Found Prototype Device 25014 | -4/Factory | Identified Adv. EM Shield 25283 | -4/Factory | Assimilating Conveyor 7a into Collective. 25297 | -4/Factory | Assimilating Sage 7c into Collective. 25302 | -4/Factory | Assimilating Veteran 7b into Collective. 25310 | -4/Factory | Assimilating Veteran 7c into Collective. 25322 | -4/Factory | Assimilating Sage 7d into Collective. 25348 | -4/Factory | Discovered exit to Research (range 4) 25354 | -4/Factory | Lost 3 allies 25508 | -4/Factory | Found Exp. Hacking Suite 25587 | -4/Factory | Assimilating Processor 7b into Collective. 25799 | -4/Factory | Cargo convoy interrupted 25851 | -4/Factory | Spotted Executioner 25871 | -4/Factory | System corruption reached 10% 25872 | -4/Factory | Assimilating Sage 7e into Collective. 25907 | -4/Factory | Lost 4 allies 25918 | -4/Factory | Lost 7 parts (1n4u2w) 25927 | -4/Factory | Identified exit to Garrison 25927 | -4/Factory | Entered Garrison 25981 | -4/Garrison | Triggered checkpoint 26100 | -4/Garrison | Core integrity fell below 50% 26119 | -4/Garrison | Core integrity fell below 20% 26132 | -4/Garrison | Destroyed by G-67 Veteran with Field Laser Last Messages --------------- 26106_ Slammed into G-67 Veteran. 26107_ System corrupted: Component data lost. 26107_ Slammed into G-67 Veteran. 26108_ Meta Core destroyed. 26108_ Temporary Utility slot lost. 26108_ Slammed into G-67 Veteran. 26114_ Relay Coupler [Sentry] destroyed. 26114_ System corrupted by crushing effect (+3). 26115_ Slammed into G-67 Veteran. 26116_ Destabilizing: System corrupted (+2). 26117_ Slammed into G-67 Veteran. 26118_ Critical hit (Burn: +50). 26119_ Slammed into G-67 Veteran. 26119_ Destabilizing: System corrupted (+1). 26120_ Slammed into G-67 Veteran. 26125_ System corrupted: Energy discharge (-38). 26128_ Slammed into G-67 Veteran. 26128_ Destabilizing: Core damaged (-34). 26129_ Slammed into G-67 Veteran. 26130_ Slammed into P-70 Sage. Map ----- +----------------------------------------------------+ | ?????????????????????????????????????????????????? | | ?????????????????????????????????????????????????? | | ?????????????????????????????????????????????????? | | ?????????????????????????????????????????????????? | | ?????????????????????????????????????????????????? | | ?????????????????????????????????????????????????? | | ?????????????????????????????????????????????????? | | ????????????????????????????######???????????????? | | ????????????????????????????# #???????????????? | | ????????????????????????????# #???????????????? | | ????????????????????????????# #???????????????? | | ????????????????????????????### #???????????????? | | ??????????????????????????????# #???????????????? | | ??????????????????????????????# #???????????????? | | ??????????????????????????????# #???????????????? | | ????????????????????????####### #???????????????? | | ????????????????????????# ##############??? | | ????????????????????????# ##### ^ #??? | | ????????????????????????# #???# #??? | | ????????????????????????# #???#+######+##### #??? | | ????????????????????????# ##### #????# #???# #??? | | ??????????????????????### + #????# #???# #??? | | ??????????????????????#%% #######????# #???# #??? | | ??????????????????????#%%%#??????????# #???# #??? | | ??????????????????????# %g#??????????# #???# #??? | | ??????????????????????###@#??????????# #???# #??? | | ????????????????????????#p###????????# #???# ##"" | | ????????????????????????#p#"#????????# #### | | ????????????????????????# g"#????????# + | | ????????????????????????# "#????????###### | | ????????????????????????# "#?????????????? ## | | ????????????????????????# #"#?????????????? #??? | | ????????????????????????#####?????????????? ?? | | ??????????????????????????????????????????? ? | | ??????????????????????????????????????????? | | ?????????????????????????????????????????????? | | ??????????????????????????????????????????????## | | ???????????????????????????????????????????????? | | ????????????????????????????????????????????????? | | ?????????????????????????????????????????????????? | | ?????????????????????????????????????????????????? | | ?????????????????????????????????????????????????? | | ?????????????????????????????????????????????????? | | ?????????????????????????????????????????????????? | | ?????????????????????????????????????????????????? | | ?????????????????????????????????????????????????? | | ?????????????????????????????????????????????????? | | ?????????????????????????????????????????????????? | | ?????????????????????????????????????????????????? | | ?????????????????????????????????????????????????? | +----------------------------------------------------+ Best States ------------- Heat Dissipation 71 Energy Generation 46 Energy Capacity 430 Matter Stores 300 Matter Capacity 700 Sight Range 16 Robot Scan Range 15 Terrain Scan Range 20 Terrain Scan Density 10 Jamming Range 14 Power Amplification 30 Additional Mass Support 12 Armor Coverage 450 Resistance: TH 20 Evasion (%) 50 Targeting Accuracy 6 Recoil Reduction 2 Matter Filtering 50 Particle Charging 30 Offensive Hacking 16 Defensive Hacking 10 Relay Coupler Types 5 Relay Coupler Value 132 Item Schematics ----------------- Cargo Storage Unit | -10/Materials | Hacked Remote Force Field | -6/Extension | Hacked Robot Schematics ------------------ None Fabricated ------------ Lrn. Proton Cannon | x2 | -5/Factory | Preloaded Remote Force Field | x2 | -4/Factory Repaired ---------- Nothing Studied --------- Com. Wheel | -8/Materials | Hacked Arm. Wheel | -7/Factory | Hacked Arm. Huge Wheel | -5/Factory | Hacked Alien Tech Used ----------------- None Achievements -------------- Be The Sidekick Better Safe Than Exploded Botjacking Hackerman I Have A Map? Let Me Out Of Here Physics Hates This One Trick Satisfying Taming Of The Crushers Versatile Watcher Gambling Zeroed Repercussions Challenges ------------ None Game ------ Seed ImpactLightpackCutter Manual? 0 Play Time 07:40:49 Cumulative 454.3 hours Start 2026.02.15 @ 03:59:45 End 2026.02.15 @ 21:29:17 Sessions 3 Manual Loads 0 Difficulty Rogue Special Mode None Game No. 217 Rogue 217 Adventurer 0 Explorer 0 Win Type - Total 15 Types 8/0/5/2/0/0/0/0/0/0 Lore% 70 Gallery% 71 Achievement% 52 Wizard Run 0 Options --------- Layout 0 ASCII 0 Keyboard 0 Movement Numpad Keybinds 0 Fullscreen 1 Font 18/SmallcapsGlow Map View 76x50 Zoom Use 0% Tactical HUD 1 Map Filters NONE Filters NONE Steam 1 RUN: 5023b4a1-fbe2-42d7-ba87-9315d9a2b8a2